FIN.Transaction Date,MCH.Merchant Name,FIN.Accounting Code 01 Description,FIN.Accounting Code 03 Description,FIN.Net Transaction Amount,FIN.Transaction Amount,FIN.TAX.Net Amount,FIN.Tax Amount,FIN.TAX.Tax Rate,FIN.Tax Rate(%)
02/07/2017,BOOKER LIMITED MANSFIE,Southwell Tr admin & ops,Vending Machine Provisions,76.75,76.75,.00,.00,.00,.00
30/06/2017,FACEBK JNYB9D6LS2,Promotion Of Tourism,Contractual Services,7.97,7.97,.00,.00,.00,.00
30/06/2017,Amazon UK Marketplace,Heritage Culture and Visitors,Promotion Of Events,14.97,17.97,.00,3.00,.00,20.00
30/06/2017,GODADDY COM EUROPE,Vicar Water Park,Contractual Services,14.10,16.92,.00,2.82,.00,20.00
29/06/2017,AMAZON.CO.UK,Arts Development,Parish Cncls And Vol Bodies,67.73,81.28,.00,13.55,.00,20.00
30/06/2017,WWW.SHAWS.CO.UK,Legal Section,Stationery,22.45,26.94,.00,4.49,.00,20.00
30/06/2017,SJASUPLIES,Vicar Water Park,Materials,65.03,78.04,.00,13.01,.00,20.00
30/06/2017,WWW.ARKWILDLIFE.CO.UK,Vicar Water Park,Materials,25.95,25.95,.00,.00,.00,.00
01/07/2017,MAILCHIMP    MONTHLY,Heritage Culture and Visitors,Advertising,58.52,58.52,.00,.00,.09,.00
01/07/2017,LUL TICKET MACHINE,Heritage Culture and Visitors,Contractual Services,10.00,10.00,.00,.00,.00,.00
03/07/2017,POUNDWORLD RETAIL,Heritage Culture and Visitors,Promotion Of Events,66.67,80.00,.00,13.33,.00,20.00
03/07/2017,Trainline,Area Planning,Travel And Subsistence,51.71,51.71,.00,.00,.00,.00
02/07/2017,AMAZON.CO.UK,Heritage Culture and Visitors,Other Equipment And Tools,24.55,29.46,.00,4.91,.00,20.00
03/07/2017,Virgin Trains,Strategic Hsg (Was Community),Travel And Subsistence,64.30,64.30,.00,.00,.00,.00
02/07/2017,CO OP FOOD,Southwell Tr admin & ops,Vending Machine Provisions,12.00,12.00,.00,.00,.00,.00
03/07/2017,HAMPSHIREFL,Civic Expenses,Allowance,39.29,47.15,.00,7.86,.00,20.00
04/07/2017,DVLA VEHICLE TAX,Refuse Collection,Licences & M.O.T.'S,652.50,652.50,.00,.00,.00,.00
04/07/2017,DVLA VEHICLE TAX,Refuse Collection,Licences & M.O.T.'S,652.50,652.50,.00,.00,.00,.00
04/07/2017,DVLA VEHICLE TAX,Refuse Collection,Licences & M.O.T.'S,652.50,652.50,.00,.00,.00,.00
04/07/2017,DVLA VEHICLE TAX,Private Estates,Licences & M.O.T.'S,242.50,242.50,.00,.00,.00,.00
04/07/2017,DVLA VEHICLE TAX,Street Sweeping,Licences & M.O.T.'S,212.50,212.50,.00,.00,.00,.00
04/07/2017,DVLA VEHICLE TAX,Street Sweeping,Licences & M.O.T.'S,212.50,212.50,.00,.00,.00,.00
04/07/2017,DVLA VEHICLE TAX,Refuse Collection,Licences & M.O.T.'S,652.50,652.50,.00,.00,.00,.00
04/07/2017,DVLA VEHICLE TAX,Vehicle Pool Workshop,Licences & M.O.T.'S,242.50,242.50,.00,.00,.00,.00
04/07/2017,DVLA VEHICLE TAX,Refuse Collection,Licences & M.O.T.'S,652.50,652.50,.00,.00,.00,.00
04/07/2017,DVLA VEHICLE TAX,Refuse Collection,Licences & M.O.T.'S,652.50,652.50,.00,.00,.00,.00
04/07/2017,CO OP FOOD,Southwell Tr admin & ops,Vending Machine Provisions,12.00,12.00,.00,.00,.00,.00
04/07/2017,Amazon UK Marketplace,Env Health Proactive,Computer Equipment Purchase,16.99,16.99,.00,.00,.00,.00
05/07/2017,WWW.SHOP.MARSHALLS.CO.,Active4Today repairs & maintenance,Payments,386.90,464.28,.00,77.38,.00,20.00
06/07/2017,Amazon UK Marketplace,Heritage Culture and Visitors,Promotion Of Events,9.98,11.98,.00,2.00,.00,20.00
06/07/2017,Amazon UK Marketplace,Heritage Culture and Visitors,Promotion Of Events,5.95,7.14,.00,1.19,.00,20.00
06/07/2017,LONDON MIDLAND WEB,Strategic Hsg (Was Community),Travel And Subsistence,57.10,57.10,.00,.00,.00,.00
06/07/2017,DISCLOSURE & BARRING,Personnel Section,Disclosure & barring service,-13.00,-13.00,.00,.00,.00,.00
06/07/2017,DISCLOSURE & BARRING,Arts Development,Contractual Services,13.00,13.00,.00,.00,.00,.00
06/07/2017,HOME BARGAINS NEWARK,Civic Expenses,Allowance,4.71,5.65,.00,.94,.00,20.00
08/07/2017,ARGOS RETAIL GROUP,Heritage Culture and Visitors,Other Equipment And Tools,16.66,19.99,.00,3.33,.00,20.00
07/07/2017,CO OP FOOD,Southwell Tr admin & ops,Vending Machine Provisions,12.00,12.00,.00,.00,.00,.00
10/07/2017,WWW.PASTDUECREDIT.CO.U,Housing Options,Recharge Third Party,19.68,19.68,.00,.00,.00,.00
10/07/2017,E.ON ENERGY SOLUTIONS,Housing Options,Recharge Third Party,4.28,4.28,.00,.00,.00,.00
10/07/2017,WILKO RETAIL LIMIT,Cashiers,Cleaning Materials,5.75,6.90,.00,1.15,.00,20.00
10/07/2017,ALDI,Civic Expenses,Allowance,47.48,47.48,.00,.00,.00,.00
11/07/2017,ARGOS RETAIL GROUP,Heritage Culture and Visitors,Other Equipment And Tools,33.32,39.98,.00,6.66,.00,20.00
12/07/2017,CO OP FOOD,Southwell Tr admin & ops,Vending Machine Provisions,12.00,12.00,.00,.00,.00,.00
12/07/2017,MARKS&SPENCER PLC,Promotion Of Tourism,Contractual Services,322.92,387.50,.00,64.58,.00,20.00
12/07/2017,E.ON ENERGY SOLUTIONS,Housing Options,Recharge Third Party,.55,.55,.00,.00,.00,.00
13/07/2017,Amazon UK Marketplace,Heritage Culture and Visitors,Promotion Of Events,19.37,19.37,.00,.00,.00,.00
13/07/2017,Amazon UK Marketplace,Heritage Culture and Visitors,Promotion Of Events,8.20,9.84,.00,1.64,.00,20.00
13/07/2017,SAFETYSUPPL,Sconce & Devon Park,Contractual Services,25.45,30.54,.00,5.09,.00,20.00
13/07/2017,PAYPAL  KENYONGROUP,Administration Services,Stationery,26.58,26.58,.00,.00,.00,.00
13/07/2017,PET-ID MICROCHIPS LTD,Dogs/ Animal Welfare,Other Equipment And Tools,134.94,161.93,.00,26.99,.00,20.00
13/07/2017,Virgin Trains,Strategic Hsg (Was Community),Travel And Subsistence,49.20,49.20,.00,.00,.00,.00
13/07/2017,ADOBE  CREATIVE CLOUD,Heritage Culture and Visitors,Advertising,53.20,63.84,.00,10.64,.00,20.00
14/07/2017,AMAZON.CO.UK,Heritage Culture and Visitors,Promotion Of Events,8.12,9.75,.00,1.63,.00,20.00
13/07/2017,AMAZON.CO.UK,Heritage Culture and Visitors,Promotion Of Events,19.36,19.36,.00,.00,.00,.00
15/07/2017,CO OP FOOD,Southwell Tr admin & ops,Vending Machine Provisions,12.00,12.00,.00,.00,.00,.00
15/07/2017,123 REG R/T,Heritage Culture and Visitors,Contractual Services,71.92,86.30,.00,14.38,.00,20.00
17/07/2017,WWW.ARCHERSIGNS.CO.UK,Brunel Drive Depot,Repairs And Maintenance,61.98,61.98,.00,.00,.00,.00
18/07/2017,JOHN E WRIGHT,Area Planning,Ordnance Survey Extracts,97.08,97.08,.00,.00,.00,.00
18/07/2017,Trainline,Economic Development Unit,Employment & skills,63.70,63.70,.00,.00,.00,.00
18/07/2017,CANFORD AUDIO PLC,Env Health Proactive,Materials,120.00,144.00,.00,24.00,.00,20.00
18/07/2017,WWW.DOMAINMONSTER.COM,Economic Development Unit,Inward investment,33.96,40.75,.00,6.79,.00,20.00
18/07/2017,WM MORRISON 048,Promotion Of Tourism,Contractual Services,25.64,30.77,.00,5.13,.00,20.00
18/07/2017,WM MORRISON 048,Promotion Of Tourism,Contractual Services,6.00,6.00,.00,.00,.00,.00
18/07/2017,WILKO RETAIL LIMIT,Promotion Of Tourism,Contractual Services,4.71,5.65,.00,.94,.00,20.00
18/07/2017,DISCLOSURE SCOT,Legal Section,Subscriptions,25.00,25.00,.00,.00,.00,.00
19/07/2017,WWW.INN-DISPENSABLE.CO,Heritage Culture and Visitors,Licences,148.33,178.00,.00,29.67,.00,20.00
19/07/2017,ASDA  STORES 4201,Promotion Of Tourism,Contractual Services,54.29,65.15,.00,10.86,.00,20.00
19/07/2017,ASDA  STORES 4201,Promotion Of Tourism,Contractual Services,7.15,7.15,.00,.00,.00,.00
19/07/2017,AMAZON.CO.UK,Cctv,Other Equipment Maintenance,24.74,24.74,.00,.00,.00,.00
19/07/2017,Trainline,Corporate Management,Salaries basic,37.28,37.28,.00,.00,.00,.00
21/07/2017,Amazon EU,Heritage Culture and Visitors,Promotion Of Events,14.98,14.98,.00,.00,.00,.00
22/07/2017,O2 NEWARK,Heritage Culture and Visitors,Repairs And Maintenance,3.33,4.00,.00,.67,.00,20.00
22/07/2017,O2 NEWARK,Heritage Culture and Visitors,Repairs And Maintenance,13.33,16.00,.00,2.67,.00,20.00
21/07/2017,COLTON CARS LTD,Syrian resettlement scheme,Recharge Third Party,500.00,500.00,.00,.00,.00,.00
21/07/2017,CO OP FOOD,Southwell Tr admin & ops,Vending Machine Provisions,12.00,12.00,.00,.00,.00,.00
22/07/2017,WWW.MONEYCLAIM.GOV,Legal Section,Legal Fees,105.00,105.00,.00,.00,.00,.00
22/07/2017,Amazon UK Marketplace,Vicar Water Park,Materials,26.70,26.70,.00,.00,.00,.00
24/07/2017,CO OP FOOD,Active4Today repairs & maintenance,Vending Machine Provisions,12.00,12.00,.00,.00,.00,.00
24/07/2017,Amazon UK Marketplace,Heritage Culture and Visitors,Contractual Services,37.40,44.88,.00,7.48,.00,20.00
19/07/2017,Postscript Books,Heritage Culture and Visitors,Publications,9.99,9.99,.00,.00,.00,.00
25/07/2017,Amazon UK Marketplace,Customer Services,Office Equipment Purchase,1.00,1.20,.00,.20,.00,20.00
25/07/2017,BOOTS 1106,Southwell Tr admin & ops,Other Equipment Maintenance,62.47,74.97,.00,12.50,.00,20.00
25/07/2017,AMAZON.CO.UK,Arts Development,Parish Cncls And Vol Bodies,55.17,55.17,.00,.00,.00,.00
25/07/2017,AMAZON.CO.UK,Arts Development,Parish Cncls And Vol Bodies,10.62,10.62,.00,.00,.00,.00
26/07/2017,WWW.PUMPSUKLTD.COM,Southwell Tr admin & ops,Other Equipment Maintenance,165.00,198.00,.00,33.00,.00,20.00
26/07/2017,WWW.XLNTELECOM.CO.UK,Southwell Tr admin & ops,Telephones,64.26,77.11,.00,12.85,.00,20.00
26/07/2017,PAYPAL  BLACKBOX-AV,Sconce & Devon Park,Contractual Services,104.90,125.88,.00,20.98,.00,20.00
26/07/2017,WWW.CLEVERBRIDGE.NET,IT Investment,Capital Purchases,1260.00,1260.00,.00,.00,.00,.00
26/07/2017,WWW.NISBETS.COM,Moving Ahead,Equipment Repairs & Renewals,981.32,1177.58,.00,196.26,.00,20.00
26/07/2017,MEDITELLE LTD,Moving Ahead,Equipment Repairs & Renewals,222.00,222.00,.00,.00,.00,.00
26/07/2017,Amazon UK Marketplace,Arts Development,Parish Cncls And Vol Bodies,18.99,18.99,.00,.00,.00,.00
26/07/2017,DISCLOSURE & BARRING,Personnel Section,Disclosure & barring service,13.00,13.00,.00,.00,.00,.00
26/07/2017,Amazon UK Marketplace,Surface Car Parks Newark,Other Equipment And Tools,107.86,129.43,.00,21.57,.00,20.00
26/07/2017,Amazon EU,Lorry Park,Contractual Services,37.87,45.44,.00,7.57,.00,20.00
26/07/2017,Amazon EU,Lorry Park,Contractual Services,9.92,11.90,.00,1.98,.00,20.00
26/07/2017,CURRYS,Anti-Social Behaviour,Legal Fees Courts,44.13,52.96,.00,8.83,.00,20.00
27/07/2017,SCREWFIX DIRECT,Building Services,Other Equipment And Tools,49.61,59.53,.00,9.92,.00,20.00
27/07/2017,WWW.AANDCAUDIO.CO.UK,Building Services,Other Equipment And Tools,331.34,397.61,.00,66.27,.00,20.00
27/07/2017,Amazon EU,Planning Support,Clothing And Uniforms,35.10,35.10,.00,.00,.00,.00
27/07/2017,BJS BAKERY,Env Health Proactive,Catering Equipment,25.00,25.00,.00,.00,.00,.00
28/07/2017,NETMUMS LTD,Promotion Of Tourism,Contractual Services,18.00,21.60,.00,3.60,.00,20.00
28/07/2017,DISCLOSURE & BARRING,Personnel Section,Disclosure & barring service,13.00,13.00,.00,.00,.00,.00
28/07/2017,DISCLOSURE & BARRING,Personnel Section,Disclosure & barring service,13.00,13.00,.00,.00,.00,.00
31/07/2017,CO OP FOOD,Southwell Tr admin & ops,Vending Machine Provisions,12.00,12.00,.00,.00,.00,.00
31/07/2017,FACEBK 7AG3GCEUD2,Promotion Of Tourism,Contractual Services,37.93,37.93,.00,.00,.00,.00
31/07/2017,FACEBK LCFMVBSY82,Communications & Cust Services,Corporate Communication,10.13,10.13,.00,.00,.00,.00
31/07/2017,ARCO LTD,Moving Ahead,Equipment Repairs & Renewals,131.92,158.30,.00,26.38,.00,.00
31/07/2017,TRAVELODGE,Corporate Management Team,Travel And Subsistence,-130.83,-157.00,.00,-26.17,.00,20.00
01/08/2017,CO OP FOOD,Southwell Tr admin & ops,Vending Machine Provisions,10.00,10.00,.00,.00,.00,.00
01/08/2017,AMAZON UK RETAIL AMAZO,Heritage Culture and Visitors,Repairs And Maintenance,82.50,99.00,.00,16.50,.00,20.00
01/08/2017,MAILCHIMP    MONTHLY,Heritage Culture and Visitors,Advertising,57.85,57.85,.00,.00,.09,.00
01/08/2017,FSA RECORDS,Sports Hub,Professional Services,12.00,12.00,.00,.00,.00,.00
01/08/2017,POUNDSTRETCHER 569,Housing Options,Recharge Third Party,101.30,121.56,.00,20.26,.00,20.00
01/08/2017,The Furniture Project,Housing Options,Recharge Third Party,50.00,50.00,.00,.00,.00,.00
01/08/2017,WWW.NISBETS.COM,Moving Ahead,Equipment Repairs & Renewals,36.96,44.35,.00,7.39,.00,20.00
02/08/2017,WWW.THOMASTELFORD.CO.U,Lorry park extension,Professional Services,128.00,128.00,.00,.00,.00,.00
02/08/2017,POUNDWORLD RETAIL,Heritage Culture and Visitors,Promotion Of Events,16.71,20.05,.00,3.34,.00,20.00
02/08/2017,POUNDWORLD RETAIL,Heritage Culture and Visitors,Promotion Of Events,25.83,31.00,.00,5.17,.00,20.00
02/08/2017,HAMPSHIREFL,Moving Ahead,Equipment Repairs & Renewals,181.21,217.45,.00,36.24,.00,20.00
02/08/2017,BT BILL PAYMENT 2,Cctv,Telephones,142.20,170.64,.00,28.44,.00,20.00
03/08/2017,DVLA VEHICLE TAX,Vehicle Pool Nsh,Licences & M.O.T.'S,242.50,242.50,.00,.00,.00,.00
03/08/2017,DVLA VEHICLE TAX,Vehicle Pool Nsh,Licences & M.O.T.'S,242.50,242.50,.00,.00,.00,.00
03/08/2017,DVLA VEHICLE TAX,Vehicle Pool Nsh,Licences & M.O.T.'S,242.50,242.50,.00,.00,.00,.00
03/08/2017,DVLA VEHICLE TAX,Vehicle Pool Nsh,Licences & M.O.T.'S,242.50,242.50,.00,.00,.00,.00
03/08/2017,DVLA VEHICLE TAX,Vehicle Pool Nsh,Licences & M.O.T.'S,242.50,242.50,.00,.00,.00,.00
03/08/2017,DVLA VEHICLE TAX,Vehicle Pool Nsh,Licences & M.O.T.'S,242.50,242.50,.00,.00,.00,.00
03/08/2017,DVLA VEHICLE TAX,Vehicle Pool Nsh,Licences & M.O.T.'S,242.50,242.50,.00,.00,.00,.00
03/08/2017,DVLA VEHICLE TAX,Vehicle Pool Nsh,Licences & M.O.T.'S,242.50,242.50,.00,.00,.00,.00
03/08/2017,DVLA VEHICLE TAX,Vehicle Pool Nsh,Licences & M.O.T.'S,242.50,242.50,.00,.00,.00,.00
03/08/2017,ETS,Vehicle Pool Workshop,Materials,39.82,47.78,.00,7.96,.00,20.00
03/08/2017,WWW.WHYBUYNEW.CO.UK,Southwell Tr admin & ops,Other Equipment And Tools,309.50,371.40,.00,61.90,.00,20.00
03/08/2017,NEWARK CASTLE TO,Heritage Culture and Visitors,Travel And Subsistence,6.40,6.40,.00,.00,.00,.00
03/08/2017,Amazon Prime,Env Health Proactive,Office Equipment Purchase,7.99,7.99,.00,.00,.00,.00
03/08/2017,DVLA VEHICLE TAX,Vehicle Pool Nsh,Licences & M.O.T.'S,242.50,242.50,.00,.00,.00,.00
04/08/2017,DVLA VEHICLE TAX,Refuse Collection,Licences & M.O.T.'S,652.50,652.50,.00,.00,.00,.00
04/08/2017,DVLA VEHICLE TAX,Vehicle Pool Nsh,Licences & M.O.T.'S,242.50,242.50,.00,.00,.00,.00
04/08/2017,DVLA VEHICLE TAX,Vehicle Pool Nsh,Licences & M.O.T.'S,242.50,242.50,.00,.00,.00,.00
04/08/2017,DVLA VEHICLE TAX,Vehicle Pool Nsh,Licences & M.O.T.'S,242.50,242.50,.00,.00,.00,.00
04/08/2017,DVLA VEHICLE TAX,Vehicle Pool Nsh,Licences & M.O.T.'S,242.50,242.50,.00,.00,.00,.00
04/08/2017,DVLA VEHICLE TAX,Vehicle Pool Nsh,Licences & M.O.T.'S,242.50,242.50,.00,.00,.00,.00
04/08/2017,DVLA VEHICLE TAX,Vehicle Pool Nsh,Licences & M.O.T.'S,242.50,242.50,.00,.00,.00,.00
04/08/2017,DVLA VEHICLE TAX,Vehicle Pool Nsh,Licences & M.O.T.'S,242.50,242.50,.00,.00,.00,.00
04/08/2017,DVLA VEHICLE TAX,Vehicle Pool Nsh,Licences & M.O.T.'S,242.50,242.50,.00,.00,.00,.00
04/08/2017,DVLA VEHICLE TAX,Vehicle Pool Nsh,Licences & M.O.T.'S,242.50,242.50,.00,.00,.00,.00
04/08/2017,DVLA VEHICLE TAX,Vehicle Pool Nsh,Licences & M.O.T.'S,242.50,242.50,.00,.00,.00,.00
04/08/2017,DVLA VEHICLE TAX,Vehicle Pool Nsh,Licences & M.O.T.'S,242.50,242.50,.00,.00,.00,.00
04/08/2017,BACKCARE SOLUTIONS LTD,Moving Ahead,Equipment Repairs & Renewals,443.00,531.60,.00,88.60,.00,20.00
04/08/2017,WWW.ICO.GOV.UK,Information Governance,Licences,500.00,500.00,.00,.00,.00,.00
07/08/2017,WWW.PROFESSIONALBOOKS.,Corporate Property,Publications,20.55,20.55,.00,.00,.00,.00
08/08/2017,CARTRIDGE SAVE,Southwell Tr admin & ops,Printing,70.21,84.25,.00,14.04,.00,20.00
08/08/2017,WWW.LUMINATI.CO.UK,Southwell Tr admin & ops,Is Stock Consumables,42.13,50.56,.00,8.43,.00,.00
08/08/2017,ROPE ASSEMBLIES LIMITE,Heritage Culture and Visitors,Repairs And Maintenance,12.42,14.90,.00,2.48,.00,20.00
08/08/2017,WM MORRISON 048,Heritage Culture and Visitors,Travel And Subsistence,8.64,8.64,.00,.00,.00,.00
08/08/2017,EAST COAST MAINLINE CO,Communications & Cust Services,Travel And Subsistence,123.50,123.50,.00,.00,.00,.00
09/08/2017,RBI QSS SUBS,Corporate Property,Publications,319.00,319.00,.00,.00,.00,.00
09/08/2017,JOHN E WRIGHT,Area Planning,Ordnance Survey Extracts,63.60,63.60,.00,.00,.00,.00
09/08/2017,SCREWFIX DIRECT,Moving Ahead,Equipment Repairs & Renewals,124.99,149.99,.00,25.00,.00,20.00
09/08/2017,TESCO-Seller_IST_1_240,Moving Ahead,Equipment Repairs & Renewals,10.82,12.99,.00,2.17,.00,20.00
09/08/2017,TESCO DIRECT,Moving Ahead,Equipment Repairs & Renewals,232.50,279.00,.00,46.50,.00,20.00
09/08/2017,TESCO - SDY LTD,Moving Ahead,Equipment Repairs & Renewals,16.66,19.99,.00,3.33,.00,20.00
10/08/2017,DVSA MOT COMP 2,Vehicle Pool Workshop,Materials,410.00,410.00,.00,.00,.00,.00
13/08/2017,ADOBE  CREATIVE CLOUD,Heritage Culture and Visitors,Advertising,59.00,59.00,.00,.00,.00,.00
11/08/2017,CO OP FOOD,Southwell Tr admin & ops,Vending Machine Provisions,12.00,12.00,.00,.00,.00,.00
14/08/2017,East Midlands Trains,Heritage Culture and Visitors,Travel And Subsistence,49.70,49.70,.00,.00,.00,.00
14/08/2017,HOTEL IBIS,Heritage Culture and Visitors,Travel And Subsistence,114.92,137.90,.00,22.98,.00,20.00
14/08/2017,PROPER BURGER,Economic Development Unit,Inward investment,41.67,50.00,.00,8.33,.00,20.00
14/08/2017,Amazon UK Marketplace,Env Health Proactive,Office Equipment Purchase,91.06,91.06,.00,.00,.00,.00
14/08/2017,WP-KENYON GROUP LT,Moving Ahead,Equipment Repairs & Renewals,59.34,59.34,.00,.00,.00,.00
15/08/2017,SCREWFIX DIRECT,Heritage Culture and Visitors,Repairs And Maintenance,110.47,132.57,.00,22.10,.00,20.00
15/08/2017,Trainline,Area Planning,Travel And Subsistence,118.32,118.32,.00,.00,.00,.00
15/08/2017,Amazon UK Marketplace,Moving Ahead,Equipment Repairs & Renewals,68.97,68.97,.00,.00,.00,.00
15/08/2017,PAYPAL  DISPOSABLEI,Tour of Britain,Contractual Services,165.83,199.00,.00,33.17,.00,20.00
15/08/2017,PAYPAL  DISPOSABLEI,Tour of Britain,Contractual Services,33.17,39.80,.00,6.63,.00,20.00
15/08/2017,DISCLOSURE & BARRING,Museums Management,Professional Services,13.00,13.00,.00,.00,.00,.00
15/08/2017,DISCLOSURE & BARRING,Sconce & Devon Park,Professional Services,13.00,13.00,.00,.00,.00,.00
16/08/2017,Amazon UK Marketplace,Heritage Culture and Visitors,Promotion Of Events,19.16,22.99,.00,3.83,.00,20.00
16/08/2017,OXFAM F1516,Heritage Culture and Visitors,Local History Purchases,190.00,190.00,.00,.00,.00,.00
16/08/2017,OXFAM F1516,Heritage Culture and Visitors,Local History Purchases,100.00,100.00,.00,.00,.00,.00
16/08/2017,WWW.KEYCRAFTUK.COM,Heritage Culture and Visitors,Items For Resale,164.76,197.71,.00,32.95,.00,20.00
16/08/2017,WWW.THESTAGE.CO.UK-REC,Heritage Culture and Visitors,Advertising,51.99,51.99,.00,.00,.00,.00
16/08/2017,CO OP FOOD,Southwell Tr admin & ops,Vending Machine Provisions,12.00,12.00,.00,.00,.00,.00
17/08/2017,ARGOS RETAIL GROUP,Promotion Of Tourism,Contractual Services,15.82,18.99,.00,3.17,.00,20.00
17/08/2017,ARGOS RETAIL GROUP,Promotion Of Tourism,Contractual Services,32.45,38.94,.00,6.49,.00,20.00
17/08/2017,PRIMEPRINT,Promotion Of Tourism,Contractual Services,43.33,52.00,.00,8.67,.00,20.00
17/08/2017,BIOTECTS LTD,Customer Services,Office Equipment Purchase,11.46,13.75,.00,2.29,.00,20.00
18/08/2017,DWN LIMITED,Licensing Admin,Hackney Licence Costs,7.92,7.92,.00,.00,.00,.00
21/08/2017,CLEANSMART LIMITED,Heritage Culture and Visitors,Cleaning Materials,34.95,41.94,.00,6.99,.00,20.00
21/08/2017,Amazon UK Marketplace,Moving Ahead,Equipment Repairs & Renewals,37.98,37.98,.00,.00,.00,.00
21/08/2017,Amazon Prime,Env Health Proactive,Office Equipment Purchase,-7.99,-7.99,.00,.00,.00,.00
18/08/2017,TVLICENSING.CO.UK,Central Reprographics,Licences,147.00,147.00,.00,.00,.00,.00
21/08/2017,WAITROSE 227,Castle House,Catering,88.50,88.50,.00,.00,.00,.00
21/08/2017,CBC - MOTO,Env Health Proactive,Contingency,96.71,96.71,.00,.00,.00,.00
22/08/2017,Amazon UK Marketplace,Moving Ahead,Equipment Repairs & Renewals,20.98,20.98,.00,.00,.00,.00
22/08/2017,ARGOS LTD,Promotion Of Tourism,Contractual Services,73.72,88.46,.00,14.74,.00,20.00
22/08/2017,ARGOS LTD,Promotion Of Tourism,Contractual Services,22.49,26.99,.00,4.50,.00,20.00
22/08/2017,DISCLOSURE & BARRING,Personnel Section,Disclosure & barring service,13.00,13.00,.00,.00,.00,.00
22/08/2017,DISCLOSURE & BARRING,Personnel Section,Disclosure & barring service,13.00,13.00,.00,.00,.00,.00
22/08/2017,DISCLOSURE & BARRING,Personnel Section,Disclosure & barring service,13.00,13.00,.00,.00,.00,.00
22/08/2017,DISCLOSURE & BARRING,Personnel Section,Disclosure & barring service,13.00,13.00,.00,.00,.00,.00
22/08/2017,CURRYS,Cctv,Other Equipment And Tools,30.82,36.98,.00,6.16,.00,20.00
23/08/2017,MID-UK RECYCLYING LTD,Heritage Culture and Visitors,Contractual Services,220.00,264.00,.00,44.00,.00,20.00
23/08/2017,WWW.TICKTOCKCLOCKS.CO.,Moving Ahead,Equipment Repairs & Renewals,48.96,58.75,.00,9.79,.00,20.00
23/08/2017,SCREWFIX DIRECT,Moving Ahead,Equipment Repairs & Renewals,3.65,4.38,.00,.73,.00,20.00
25/08/2017,ARGOS LTD,Southwell Tr admin & ops,Is Stock Consumables,58.32,69.98,.00,11.66,.00,.00
26/08/2017,WWW.XLNTELECOM.CO.UK,Southwell Tr admin & ops,Telephones,34.95,41.94,.00,6.99,.00,20.00
26/08/2017,DISCLOSURE SCOT,Heritage Culture and Visitors,Professional Services,25.00,25.00,.00,.00,.00,.00
27/08/2017,FACEBK 2597NCEUD2,Promotion Of Tourism,Contractual Services,201.30,201.30,.00,.00,.00,.00
29/08/2017,PAPERSTONE,Customer Services,Office Equipment Purchase,43.28,51.94,.00,8.66,.00,20.00
30/08/2017,WWW.MADE2MEASUREMIRROR,Active4Today repairs & maintenance,Payments,435.41,522.49,.00,87.08,.00,20.00
30/08/2017,WWW.FLAGSANDFLAGPOLES.,Southwell Tr admin & ops,Advertising,125.00,150.00,.00,25.00,.00,20.00
30/08/2017,CO OP FOOD,Southwell Tr admin & ops,Vending Machine Provisions,12.00,12.00,.00,.00,.00,.00
30/08/2017,WP-WWW.OYEZFORMSLINK.C,Legal Section,Publications,8.66,10.39,.00,1.73,.00,20.00
30/08/2017,DVLA VEHICLE TAX,Refuse Collection,Licences & M.O.T.'S,652.50,652.50,.00,.00,.00,.00
30/08/2017,STARTTRAFFICUK,Lorry Park,Materials,277.00,332.40,.00,55.40,.00,20.00
31/08/2017,WM MORRISON 048,Heritage Culture and Visitors,Travel And Subsistence,40.47,48.56,.00,8.09,.00,20.00
31/08/2017,FACEBK 9NNJ3DNTD2,Promotion Of Tourism,Contractual Services,23.52,23.52,.00,.00,.00,.00
31/08/2017,FACEBK Z9KYXDNKS2,Heritage Culture and Visitors,Advertising,24.03,24.03,.00,.00,.00,.00
30/08/2017,WILKO RETAIL LIMIT,Cashiers,Cleaning Materials,20.00,24.00,.00,4.00,.00,20.00
31/08/2017,FACEBK VELVFCNZ82,Communications & Cust Services,Corporate Communication,5.04,5.04,.00,.00,.00,.00
31/08/2017,WM MORRISON 048,Civic Expenses,Allowance,5.83,7.00,.00,1.17,.00,20.00
01/09/2017,POUNDWORLD RETAIL,Heritage Culture and Visitors,Promotion Of Events,7.54,9.05,.00,1.51,.00,20.00
01/09/2017,POUNDWORLD RETAIL,Heritage Culture and Visitors,Promotion Of Events,14.17,17.00,.00,2.83,.00,20.00
01/09/2017,INTU VICTORIA CENTRE,Heritage Culture and Visitors,Travel And Subsistence,2.92,3.50,.00,.58,.00,20.00
01/09/2017,MAILCHIMP    MONTHLY,Heritage Culture and Visitors,Advertising,58.95,58.95,.00,.00,.09,.00
04/09/2017,EAST COAST MAINLINE CO,Area Planning,Travel And Subsistence,17.25,17.25,.00,.00,.00,.00
04/09/2017,WWW.OFFICEMONSTER.,Moving Ahead,Equipment Repairs & Renewals,8.31,9.97,.00,1.66,.00,20.00
04/09/2017,ASDA  STORES 4201,Civic Expenses,Allowance,10.00,12.00,.00,2.00,.00,20.00
04/09/2017,FIRSTAID4LESS.CO.UK,Moving Ahead,Equipment Repairs & Renewals,28.30,33.96,.00,5.66,.00,20.00
04/09/2017,FIREPROTECT,Corporate Property,Repairs And Maintenance,30.01,36.01,.00,6.00,.00,20.00
05/09/2017,Amazon UK Marketplace,Moving Ahead,Equipment Repairs & Renewals,33.32,39.99,.00,6.67,.00,20.00
05/09/2017,SOUND LEISURE LTD,Moving Ahead,Equipment Repairs & Renewals,294.00,352.80,.00,58.80,.00,20.00
05/09/2017,CARD FACTORY,Heritage Culture and Visitors,Advertising,16.66,19.99,.00,3.33,.00,20.00
05/09/2017,BT BILL PAYMENT 2,Cctv,Telephones,89.85,107.82,.00,17.97,.00,20.00
06/09/2017,East Midlands Trains,Performance,Travel And Subsistence,13.40,13.40,.00,.00,.00,.00
06/09/2017,ORCHARD HOTEL,Performance,Travel And Subsistence,76.17,91.40,.00,15.23,.00,20.00
06/09/2017,WWW.NEWARK-SHERWOODDC.,Heritage Culture and Visitors,Professional Services,37.56,37.56,.00,.00,.00,.00
06/09/2017,PAYPAL  MUSEUMSASSC,Heritage Culture and Visitors,Promotion Of Events,79.17,95.00,.00,15.83,.00,20.00
06/09/2017,Amazon UK Marketplace,Moving Ahead,Equipment Repairs & Renewals,66.91,66.91,.00,.00,.00,.00
06/09/2017,MARKS&SPENCER PLC,Heritage Culture and Visitors,Advertising,72.00,72.00,.00,.00,.00,.00
06/09/2017,MARKS&SPENCER PLC,Heritage Culture and Visitors,Advertising,98.00,98.00,.00,.00,.00,.00
06/09/2017,Amazon EU,Moving Ahead,Equipment Repairs & Renewals,17.74,17.74,.00,.00,.00,.00
06/09/2017,FTPE WEBTIS 1,Corporate Management Team,Travel And Subsistence,21.50,21.50,.00,.00,.00,.00
07/09/2017,TRFSA   THOMSONREUTERS,Area Planning,Publications,64.00,64.00,.00,.00,.00,.00
07/09/2017,Virgin Trains,Council Tax,Travel And Subsistence,16.40,16.40,.00,.00,.00,.00
07/09/2017,Amazon EU,Moving Ahead,Equipment Repairs & Renewals,96.53,115.84,.00,19.31,.00,20.00
07/09/2017,Amazon UK Marketplace,Community Safety Partnership,Contractual Services,339.90,339.90,.00,.00,.00,.00
07/09/2017,Amazon UK Marketplace,Community Safety Partnership,Contractual Services,124.90,124.90,.00,.00,.00,.00
08/09/2017,"Amazon Svcs Europe,SAR",Env Health Proactive,Office Equipment Purchase,52.92,63.51,.00,10.59,.00,20.00
08/09/2017,Shopfitting Warehouse,Moving Ahead,Equipment Repairs & Renewals,68.25,81.90,.00,13.65,.00,20.00
09/09/2017,Amazon UK Marketplace,Moving Ahead,Equipment Repairs & Renewals,53.75,64.50,.00,10.75,.00,20.00
08/09/2017,LIVINGSOCIAL,Central Personnel Expenses,Internal Training,16.00,16.00,.00,.00,.00,.00
08/09/2017,LIVINGSOCIAL,Central Personnel Expenses,Internal Training,16.00,16.00,.00,.00,.00,.00
08/09/2017,LIVINGSOCIAL,Central Personnel Expenses,Internal Training,16.00,16.00,.00,.00,.00,.00
08/09/2017,DISCLOSURE & BARRING,Personnel Section,Disclosure & barring service,13.00,13.00,.00,.00,.00,.00
05/09/2017,ARCO LTD,Castle House,Repairs And Maintenance,42.94,51.53,.00,8.59,.00,.00
11/09/2017,WWW.BHMA.CO.UK,Moving Ahead,Equipment Repairs & Renewals,34.95,41.94,.00,6.99,.00,20.00
11/09/2017,TRAVELODGE,Heritage Culture and Visitors,Travel And Subsistence,75.83,91.00,.00,15.17,.00,20.00
11/09/2017,EAST COAST MAINLINE CO,Heritage Culture and Visitors,Travel And Subsistence,69.80,69.80,.00,.00,.00,.00
11/09/2017,JOHN E WRIGHT,Area Planning,Ordnance Survey Extracts,160.50,160.50,.00,.00,.00,.00
11/09/2017,POUNDSTRETCHER 569,Housing Options,Recharge Third Party,99.00,118.80,.00,19.80,.00,20.00
11/09/2017,ASDA HOME SHOPPING,Castle House,Catering,32.69,32.69,.00,.00,.00,.00
12/09/2017,DVLA VEHICLE TAX,Sconce & Devon Park,Licences & M.O.T.'S,242.50,242.50,.00,.00,.00,.00
12/09/2017,DVLA VEHICLE TAX,Refuse Collection,Licences & M.O.T.'S,652.50,652.50,.00,.00,.00,.00
12/09/2017,DVLA VEHICLE TAX,Refuse Collection,Licences & M.O.T.'S,652.50,652.50,.00,.00,.00,.00
12/09/2017,DVLA VEHICLE TAX,Refuse Collection,Licences & M.O.T.'S,652.50,652.50,.00,.00,.00,.00
12/09/2017,DVLA VEHICLE TAX,Refuse Collection,Licences & M.O.T.'S,652.50,652.50,.00,.00,.00,.00
12/09/2017,DVLA VEHICLE TAX,Refuse Collection,Licences & M.O.T.'S,652.50,652.50,.00,.00,.00,.00
12/09/2017,EAST MIDLANDS TRAI,Heritage Culture and Visitors,Travel And Subsistence,18.90,18.90,.00,.00,.00,.00
12/09/2017,Amazon UK Marketplace,Moving Ahead,Equipment Repairs & Renewals,28.30,33.96,.00,5.66,.00,20.00
12/09/2017,Virgin Trains,Env Health Proactive,Travel And Subsistence,72.10,72.10,.00,.00,.00,.00
12/09/2017,Amazon UK Marketplace,IT Investment,Capital Purchases,117.59,117.59,.00,.00,.00,.00
12/09/2017,WWW.ICO.GOV.UK,Electoral Registration,Subscriptions,35.00,35.00,.00,.00,.00,.00
12/09/2017,Amazon UK Marketplace,Community Safety Partnership,Contractual Services,124.90,124.90,.00,.00,.00,.00
13/09/2017,PAYPAL  FLINTBISHOP,Central Personnel Expenses,Internal Training,30.00,36.00,.00,6.00,.00,20.00
13/09/2017,Amazon EU,Env Health Proactive,Office Equipment Purchase,14.78,17.74,.00,2.96,.00,20.00
13/09/2017,ADOBE  CREATIVE CLOUD,Heritage Culture and Visitors,Advertising,59.00,59.00,.00,.00,.00,.00
13/09/2017,Amazon UK Marketplace,Community Safety Partnership,Contractual Services,339.90,339.90,.00,.00,.00,.00
13/09/2017,DIGITAL ID,Licensing Admin,Hackney Licence Costs,49.94,59.93,.00,9.99,.00,20.00
14/09/2017,EB  HIGH GROWTH SUMMIT,Economic Development Unit,Employment & skills,95.00,95.00,.00,.00,.00,.00
14/09/2017,WILKO RETAIL LIMIT,Heritage Culture and Visitors,Advertising,43.33,52.00,.00,8.67,.00,20.00
15/09/2017,CO OP FOOD,Southwell Tr admin & ops,Vending Machine Provisions,12.00,12.00,.00,.00,.00,.00
16/09/2017,ASDA  STORES 4201,Heritage Culture and Visitors,Advertising,3.33,4.00,.00,.67,.00,20.00
16/09/2017,ASDA  STORES 4201,Heritage Culture and Visitors,Advertising,8.38,8.38,.00,.00,.00,.00
17/09/2017,EMAP LTD-SUBSCRIPTIONS,Corporate Management Team,Subscriptions,224.10,224.10,.00,.00,.00,.00
18/09/2017,Virgin Trains,Strategic Hsg (Was Community),Travel And Subsistence,123.00,123.00,.00,.00,.00,.00
18/09/2017,EAST COAST MAINLINE CO,Members Expenses,Travel And Subsistence,100.00,100.00,.00,.00,.00,.00
18/09/2017,ASDA HOME SHOPPING,Castle House,Catering,98.76,98.76,.00,.00,.00,.00
18/09/2017,BT BILL PAYMENT 2,Cctv,Telephones,121.20,145.44,.00,24.24,.00,20.00
18/09/2017,Amazon UK Marketplace,Customer Services,Office Equipment Purchase,3.33,4.00,.00,.67,.00,20.00
19/09/2017,TESCO STORES 5379,Southwell Tr admin & ops,Stationery,23.33,28.00,.00,4.67,.00,20.00
19/09/2017,MAPLIN MANSFIELD NG18,Southwell Tr admin & ops,Is Stock Consumables,33.32,39.99,.00,6.67,.00,20.00
19/09/2017,MAPLIN MANSFIELD NG18,Community Safety Partnership,Contractual Services,291.66,349.99,.00,58.33,.00,20.00
20/09/2017,WWW.MOTOR.ORG.UK,Vehicle Pool Workshop,Materials,180.00,216.00,.00,36.00,.00,20.00
20/09/2017,OSBORNES NEWARK,Brunel Drive Depot Admin,Stationery,17.49,20.99,.00,3.50,.00,20.00
20/09/2017,CO OP FOOD,Southwell Tr admin & ops,Vending Machine Provisions,12.00,12.00,.00,.00,.00,.00
20/09/2017,THE BELGRAVE LONDON,Economic Development Unit,Employment & skills,122.50,147.00,.00,24.50,.00,20.00
20/09/2017,SIMON JERSEY,Heritage Culture and Visitors,Clothing And Uniforms,52.92,63.50,.00,10.58,.00,20.00
20/09/2017,Amazon EU,Democratic Representation,Travel And Subsistence,17.90,21.48,.00,3.58,.00,20.00
20/09/2017,EAST COAST MAINLINE CO,Moving Ahead,Travel And Subsistence,150.00,150.00,.00,.00,.00,.00
20/09/2017,AMAZON UK RETAIL AMAZO,Licensing Admin,Hackney Licence Costs,20.89,20.89,.00,.00,.00,.00
21/09/2017,BIOTECTS LTD,Moving Ahead,Equipment Repairs & Renewals,122.70,147.24,.00,24.54,.00,20.00
21/09/2017,Amazon UK Marketplace,Heritage Culture and Visitors,Clothing And Uniforms,8.73,10.48,.00,1.75,.00,20.00
21/09/2017,ASDA HOME SHOPPING,Castle House,Catering,95.64,95.64,.00,.00,.00,.00
24/09/2017,ONE STOP 0817,Southwell Tr admin & ops,Vending Machine Provisions,12.00,12.00,.00,.00,.00,.00
22/09/2017,TESCO STORES 5379,Southwell Tr admin & ops,Office Equipment Purchase,37.50,45.00,.00,7.50,.00,20.00
22/09/2017,BOOKER LIMITED MANSFIE,Southwell Tr admin & ops,Miscellaneous Expenses,98.93,118.72,.00,19.79,.00,20.00
22/09/2017,WWW.REGATTA.COM,Southwell Tr admin & ops,Clothing And Uniforms,115.00,138.00,.00,23.00,.00,20.00
22/09/2017,POUNDSTRETCHER 569,Housing Options,Recharge Third Party,95.22,114.26,.00,19.04,.00,20.00
22/09/2017,Amazon EU,Moving Ahead,Equipment Repairs & Renewals,14.78,17.74,.00,2.96,.00,20.00
22/09/2017,East Midlands Trains,Local Development Framework,Travel And Subsistence,47.20,47.20,.00,.00,.00,.00
21/09/2017,AMAZON UK RETAIL AMAZO,Local Development Framework,Stationery,36.47,43.77,.00,7.30,.00,20.00
24/09/2017,WILKO RETAIL LIMIT,Civic Expenses,Allowance,3.00,3.00,.00,.00,.00,.00
22/09/2017,EAST COAST MAINLINE CO,Corporate Management Team,Travel And Subsistence,199.15,199.15,.00,.00,.00,.00
22/09/2017,EAST COAST MAINLINE CO,Central Personnel Expenses,Internal Training,149.00,149.00,.00,.00,.00,.00
22/09/2017,WH SMITH,Customer Services,Office Equipment Purchase,2.07,2.49,.00,.42,.00,20.00
25/09/2017,WWW.PROSOL.CO.UK,Vehicle Pool Workshop,Materials,118.56,142.27,.00,23.71,.00,20.00
25/09/2017,SCREWFIX DIRECT,Grounds Maintenance,Materials,79.98,79.98,.00,.00,.00,.00
25/09/2017,NEWARK HEATING AND PLU,Brunel Drive Depot,Materials,90.00,108.00,.00,18.00,.00,20.00
25/09/2017,MEDIGOLD HEALTH CONSUL,Licensing Admin,Hackney Licence Costs,75.00,75.00,.00,.00,.00,.00
25/09/2017,MAX SPIELMANN LTD,Heritage Culture and Visitors,Professional Services,7.99,7.99,.00,.00,.00,.00
25/09/2017,WAITROSE 227,Castle House,Catering,75.15,75.15,.00,.00,.00,.00
25/09/2017,EAST COAST MAINLINE CO,Corporate Management Team,Travel And Subsistence,141.55,141.55,.00,.00,.00,.00
25/09/2017,ALDI 31 779        S,Civic Expenses,Allowance,33.52,33.52,.00,.00,.00,.00
26/09/2017,,Civic Expenses,New Year Chairman Charity,-20.00,-20.00,.00,.00,.00,.00
26/09/2017,,Civic Expenses,New Year Chairman Charity,-10.00,-10.00,.00,.00,.00,.00
27/09/2017,Amazon UK Marketplace,Heritage Culture and Visitors,Cafeteria,20.49,24.59,.00,4.10,.00,20.00
27/09/2017,DISCLOSURE & BARRING,Personnel Section,Disclosure & barring service,13.00,13.00,.00,.00,.00,.00
27/09/2017,AMAZON.CO.UK,Sconce & Devon Park,Other Equipment And Tools,23.27,27.93,.00,4.66,.00,20.00
27/09/2017,AMAZON.CO.UK,Sconce & Devon Park,Other Equipment And Tools,57.17,68.61,.00,11.44,.00,20.00
27/09/2017,SCREWFIX DIRECT,Sconce & Devon Park,Other Equipment And Tools,112.50,135.00,.00,22.50,.00,20.00
27/09/2017,Virgin Trains,Housing Options,Travel And Subsistence,13.20,13.20,.00,.00,.00,.00
27/09/2017,Amazon UK Marketplace,Sconce & Devon Park,Other Equipment And Tools,16.70,20.04,.00,3.34,.00,20.00
27/09/2017,AMAZON.CO.UK,Moving Ahead,Equipment Repairs & Renewals,66.91,66.91,.00,.00,.00,.00
27/09/2017,CO OP FOOD,Southwell Tr admin & ops,Vending Machine Provisions,10.00,12.00,.00,2.00,.00,20.00
27/09/2017,PAYPAL  BRANDLINE,Moving Ahead,Equipment Repairs & Renewals,1202.00,1442.40,.00,240.40,.00,20.00
28/09/2017,WWW.NEWARK-SHERWOODDC.,Heritage Culture and Visitors,Professional Services,90.34,90.34,.00,.00,.00,.00
28/09/2017,Amazon UK Marketplace,Heritage Culture and Visitors,Promotion Of Events,2.48,2.98,.00,.50,.00,20.00
28/09/2017,AMAZON.CO.UK,Heritage Culture and Visitors,Promotion Of Events,5.25,6.30,.00,1.05,.00,20.00
28/09/2017,Amazon UK Marketplace,Heritage Culture and Visitors,Promotion Of Events,3.00,3.60,.00,.60,.00,20.00
28/09/2017,OSBORNES NEWARK,Planning Policy,Stationery,21.00,21.00,.00,.00,.00,.00
28/09/2017,DISCLOSURE & BARRING,Personnel Section,Disclosure & barring service,13.00,13.00,.00,.00,.00,.00
28/09/2017,Trainline,Street Sweeping,Materials,19.13,19.13,.00,.00,.00,.00
28/09/2017,Amazon UK Marketplace,Env Health Proactive,Other Equipment And Tools,52.36,54.98,.00,2.62,.00,5.00
28/09/2017,EAST COAST MAINLINE CO,Corporate Management Team,Travel And Subsistence,155.00,155.00,.00,.00,.00,.00
